Cogmind - Beta 13 @@@ ROGUE MODE // 2024.04.25 @ 23:02:37 Player: GregoriusTechneticies Result: Destroyed by SI-UD1(R) with Subdweller Laser Performance ------------- Evolutions (0) 0 Regions Visited (2) 400 Robots Destroyed (47) 235 Value Destroyed (696) 696 Prototype IDs (0) 0 Alien Tech Used (0) 0 Bonus (8) 8 TOTAL SCORE: 1339 Bonus ------- High Alert Combat Kills 8 Cogmind --------- Core Integrity 0/250 Matter 191/300 Energy 96/100 System Corruption 0% Temperature Cool (6) Movement Rolling (107) Ox1 Location -10/Subcaves Parts ------- > --- POWER (1) -------- (None) > --- PROPULSION (2) --- Wheel Subdweller Monowheel > --- UTILITY (2) ------ High-capacity Storage Unit Seismic Detector > --- WEAPON (2) ------- Light Cannon Light Cannon > --- INVENTORY (20) --- Light Ion Engine Wheel Compact Wheel Medium Storage Unit High-capacity Matter Pod (133) Structural Scanner Visual Processing Unit Visual Processing Unit Signal Interpreter Signal Interpreter Signal Interpreter Improved Terrain Scanner Improved Terrain Scanner Terrain Scan Processor Seismic Detector Assault Rifle Light Cannon Datajack Mining Laser Mining Laser Peak State ------------ > --- POWER ------------ Light Nuclear Core > --- PROPULSION ------- Wheel Wheel > --- UTILITY ---------- High-capacity Storage Unit Seismic Detector > --- WEAPON ----------- Assault Rifle Assault Rifle > --- INVENTORY -------- Light Ion Engine Light Ion Engine Light Ion Engine Wheel Wheel Wheel Compact Wheel Small Storage Unit High-capacity Matter Pod Structural Scanner Visual Processing Unit Improved Terrain Scanner Improved Terrain Scanner Terrain Scan Processor Terrain Scan Processor Seismic Detector Seismic Detector Seismic Detector Tractor Beam Mining Laser [Rating: 11] Favorites ----------- Power Light Ion Engine Engine Light Ion Engine Power Core Light Nuclear Core Propulsion Wheel Wheel Wheel Utility Seismic Detector Device Seismic Detector Storage High-capacity Storage Unit Weapon Light Cannon Ballistic Gun Assault Rifle Ballistic Cannon Light Cannon Special Weapon Mining Laser Build | -11 -10 -10 ------- Run | Yrd Mat Sub Slots Evolved . | . . . Power . | . . . Propulsion . | . . . Utility . | . . . Weapon . | . . . Parts Attached 31 | 8 21 2 Power 6 | 2 4 . Engine 5 | 2 3 . Core 1 | . 1 . Reactor . | . . . Propulsion 12 | 2 9 1 Treads . | . . . Leg . | . . . Wheel 12 | 2 9 1 Hover . | . . . Flight . | . . . Utility 5 | 2 3 . Device 3 | 1 2 . Storage 2 | 1 1 . Processor . | . . . Hackware . | . . . Protection . | . . . Artifact . | . . . Weapon 8 | 2 5 1 Energy Gun . | . . . Energy Cannon . | . . . Ballistic Gun 2 | 2 . . Ballistic Cannon 4 | . 3 1 Launcher . | . . . Special Weapon 2 | . 2 . Impact Weapon . | . . . Slashing Weapon . | . . . Piercing Weapon . | . . . Special Melee Weapon . | . . . Unidentified Prototypes . | . . . Parts Lost 4 | . 2 2 Power 2 | . 1 1 Propulsion 1 | . . 1 Utility . | . . . Weapon 1 | . 1 . Highest Loss Streak 2 | . 2 1 To Critical Strikes . | . . . Average Slot Usage (%) 96 | . 96 98 Engine 10 | . 9 13 Wheel 27 | . 28 27 Device 14 | . 14 14 Storage 14 | . 14 14 Ballistic Gun 6 | . 8 . Ballistic Cannon 17 | . 15 28 Special Weapon 3 | . 3 . Naked Turns . | . . . Heaviest Build 50 | 13 50 50 Greatest Support 30 | 20 20 30 Greatest Overweight (x) 4 | 1 2 4 Average Overweight (x) 1 | . 1 1 Largest Inventory Capacity 20 | 8 20 20 Average Capacity 18 | 7 19 20 Most Carried 20 | 8 20 20 Average Carried 16 | 5 17 20 Final Capacity 20 | 8 20 20 Final Carried 20 | 8 20 20 Class Distribution -------------------- 53% | Mutant 46% | Scavenger-Mutant Dominant Class ---------------- Mutant | -10/Materials Scavenger-Mutant | -10/Subcaves Resources | -11 -10 -10 ----------- Run | Yrd Mat Sub Matter Collected 1377 | 528 652 197 Remotely . | . . . Salvage Created 1362 | 303 969 90 Parts 105 | 28 73 4 Haulers Intercepted 2 | . 2 . Recyclers Shooed 4 | 1 3 . Parts Field Recycled . | . . . Retrieved Matter . | . . . Parts Self-Destructed . | . . . Prevented . | . . . Kills | -11 -10 -10 ------- Run | Yrd Mat Sub Combat Hostiles Destroyed 16 | . 14 2 Guns 14 | . 14 . Cannons 2 | . . 2 Classes Destroyed 10 | 3 6 1 Worker 5 | 2 3 . Builder 5 | . 5 . Tunneler 11 | 9 2 . Hauler 2 | . 2 . Recycler 5 | 1 4 . Operator 1 | . 1 . Watcher 2 | . 2 . Swarmer 3 | . 3 . Grunt 11 | . 11 . Subdweller 2 | . . 2 Best Kill Streak 5 | 4 5 1 Combat Bots Only 5 | . 5 1 Max Kills in Single Turn 2 | 1 2 1 Gunslinging 1 | . 1 . Exploded . | . . . Melee . | . . . Uniques/NPCs Destroyed . | . . . Combat | -11 -10 -10 -------- Run | Yrd Mat Sub Hostile Shots Fired 79 | . 64 15 Missed 22 | . 19 3 Damage Taken 819 | . 485 334 Core 255 | . 155 100 Absorbed by Shields . | . . . Core Remaining (%) 100 | 100 . . Volleys Fired 154 | 33 109 12 Largest 2 | 2 2 2 Hottest 100 | 40 100 70 Shots Fired 273 | 66 183 24 Gun 160 | 66 94 . Cannon 84 | . 60 24 Launcher . | . . . Special 29 | . 29 . Kinetic 244 | 66 154 24 Thermal 29 | . 29 . Explosive . | . . . Electromagnetic . | . . . Robot Hit Streak 14 | 9 14 9 Robot Miss Streak 6 | 5 6 2 Penetration Max . | . . . Secondary Targets 1 | . 1 . Max Gunslinging Chain 1 | . 1 . Shots Hit Robots 144 | 33 94 17 Core Hits 64 | 13 45 6 Critical Kills . | . . . Critical Parts Destroyed 1 | . 1 . Critical Strikes 4 | . 3 1 Destroy 1 | . 1 . Blast 3 | . 2 1 Melee Attacks . | . . . Impact . | . . . Slashing . | . . . Piercing . | . . . Sneak Attacks . | . . . Combat Hostiles . | . . . Follow-up Attacks . | . . . Damage Inflicted 2023 | 423 1329 271 Guns 1165 | 423 742 . Cannons 848 | . 577 271 Explosions . | . . . Melee . | . . . Ramming 10 | . 10 . Kinetic 2013 | 423 1319 271 Thermal . | . . . Explosive . | . . . Electromagnetic . | . . . Impact . | . . . Slashing . | . . . Piercing . | . . . Highest Corruption . | . . . Average Corruption . | . . . Corruption Purged . | . . . Corruption Blocked . | . . . Overload Shots . | . . . Overflow Damage 28 | . 28 . Projectiles 28 | . 28 . Explosions . | . . . Melee . | . . . Knockbacks 9 | . 6 3 Impact . | . . . Kinetic 9 | . 6 3 Secondary . | . . . Self-Inflicted Damage 5 | . 5 . Shots . | . . . Rammed 1 | . 1 . Targets Rammed 1 | . 1 . Kicked . | . . . Crushed . | . . . Highest Temperature 160 | 6 160 . Average Temperature 36 | 6 36 . Received Heat Transfer 258 | . 234 24 Siege Activations . | . . . Robots Corrupted . | . . . Combat Hostiles . | . . . Parts Fried . | . . . Impact Corruptions . | . . . Robots Melted . | . . . Combat Hostiles . | . . . Parts Melted . | . . . Heat Transferred . | . . . Parts Sabotaged . | . . . Parts Stolen . | . . . Parts Stripped . | . . . Power Chain Reactions . | . . . Alert | -11 -10 -10 ------- Run | Yrd Mat Sub Peak Influence 411 | 60 411 . Initial 39 | . 39 . Average 190 | 32 220 . Maximum Alert Level 2 | . 2 . Low Security (%) 42 | 100 32 . Level 1 56 | . 67 . Level 2 . | . . . Level 3 . | . . . Level 4 . | . . . Level 5 . | . . . High Security . | . . . Max Security . | . . . Squads Dispatched 6 | . 6 . Investigation 4 | . 4 . Extermination . | . . . Reinforcement 2 | . 2 . Assault . | . . . Garrison . | . . . Intercept . | . . . Searches Triggered . | . . . Construction Impeded . | . . . Haulers Reinforced . | . . . Active Scanning Responses . | . . . Cargo Convoy Interrupts . | . . . Stealth | -11 -10 -10 --------- Run | Yrd Mat Sub Distress Signals 2 | . 2 . Communications Jammed . | . . . Distress Signals . | . . . Times Spotted 28 | . 24 4 Peak Tracking Total 7 | . 7 2 Tactical Retreats 2 | . 2 . Traps | -11 -10 -10 ------- Run | Yrd Mat Sub Traps Triggered 3 | . 1 2 Indirectly . | . . . Trap Hack Attempts . | . . . Triggered . | . . . Disarmed . | . . . Reprogrammed . | . . . Reused . | . . . Traps Extracted . | . . . Installed . | . . . Triggered . | . . . Machines | -11 -10 -10 ---------- Run | Yrd Mat Sub Machines Disabled 2 | . 2 . Max in Single Turn 1 | . 1 . Machines Repaired . | . . . Machines Dismantled . | . . . Machines Sabotaged . | . . . Overloaded Fab Kills . | . . . Hacking | -11 -10 -10 --------- Run | Yrd Mat Sub Machines Accessed 4 | . 4 . Terminals 4 | . 4 . Fabricators . | . . . Repair Stations . | . . . Recycling Units . | . . . Scanalyzers . | . . . Garrison Access . | . . . Total Hacks 14 | . 14 . Successful 5 | . 5 . Failed 9 | . 9 . Catastrophic 1 | . 1 . Database Lockouts . | . . . Manual 13 | . 13 . Terminals 14 | . 14 . Fabricators . | . . . Repair Stations . | . . . Recycling Units . | . . . Scanalyzers . | . . . Garrison Access . | . . . Terminal Hacks 2 | . 2 . Terminal Index 1 | . 1 . Investigation Status 1 | . 1 . Fabricator Hacks . | . . . Repair Station Hacks . | . . . Recycling Unit Hacks . | . . . Scanalyzer . | . . . Garrison Access Hacks . | . . . Unauthorized Hacks 3 | . 3 . Terminals 3 | . 3 . Botnet 3 | . 3 . Fabricators . | . . . Repair Stations . | . . . Recycling Units . | . . . Scanalyzers . | . . . Garrison Access . | . . . Data Cores Recovered . | . . . Used . | . . . Hacking Detections 4 | . 4 . Full Trace Events 4 | . 4 . Feedback Events . | . . . Feedback Blocked . | . . . Robot Schematics Acquired . | . . . Robots Built . | . . . Authchips . | . . . Time . | . . . Total Robot Build Rating . | . . . Part Schematics Acquired . | . . . Parts Built . | . . . Authchips . | . . . Time . | . . . Total Part Build Rating . | . . . Parts Repaired . | . . . Time . | . . . Parts Recycled . | . . . Recycled Matter . | . . . Retrieved Matter . | . . . Retrieved Components . | . . . Parts Scanalyzed . | . . . Part Schematics Acquired . | . . . Parts Damaged . | . . . Bothacking | -11 -10 -10 ------------ Run | Yrd Mat Sub Used RIF Installer . | . . . Robots Hacked . | . . . Non-combat . | . . . Combat . | . . . Robot Hacks Applied . | . . . Relay Couplers Released . | . . . Fabnet Peak Effective % . | . . . Robots Rewired . | . . . Allies Hacked . | . . . Hacks Repelled . | . . . Allies | -11 -10 -10 -------- Run | Yrd Mat Sub Total Allies . | . . . Largest Group . | . . . Highest-Rated Group . | . . . Highest-Rated Ally . | . . . Total Orders . | . . . Ally Attacks . | . . . Total Damage . | . . . Kills . | . . . Allies Corrupted . | . . . Allies Melted . | . . . Intel | -11 -10 -10 ------- Run | Yrd Mat Sub Robot Analysis Total . | . . . Derelict Logs Recovered 1 | . . 1 Drone Launches . | . . . Drone Recoveries . | . . . Exploration | -11 -10 -10 ------------- Run | Yrd Mat Sub Turns Passed 2219 | 288 1499 432 Spaces Moved 953 | 150 466 337 Core 3 | 3 . . Treads . | . . . Legs . | . . . Wheels 950 | 147 466 337 Hover . | . . . Flight . | . . . Fastest Speed 50 | 50 80 107 Average Speed 104 | 80 108 110 Slowest Speed 140 | 100 110 140 Overloaded Moves . | . . . Propulsion Burnouts . | . . . Robots Hopped . | . . . Cave-ins Triggered . | . . . Exploration Rate (%) 20 | 5 38 19 Regions Visited 2 Branch Regions 1 Pre-discovered Areas 1 | . . 1 Known Exits Taken . | . . . Unknown Exits Taken 2 | 1 1 . Scrap Searched 4 | . . 4 Spaces Dug . | . . . Terrain Destroyed 3 | . 3 . Melee . | . . . Projectile 3 | . 3 . AOE . | . . . Terrain Rammed . | . . . Walls Destroyed . | . . . Machines Disabled . | . . . Actions | -11 -10 -10 --------- Run | Yrd Mat Sub Total 1859 | 253 1232 374 Wait 635 | 42 570 23 Move 951 | 149 465 337 Hop . | . . . Pick Up 51 | 14 37 . Fast Attach 10 | 7 2 1 Attach 1 | . 1 . Detach . | . . . Swap 20 | 1 18 1 Drop 36 | 7 29 . Fire 154 | 33 109 12 Melee . | . . . Ram 1 | . 1 . Kick . | . . . Crush . | . . . Escape Stasis . | . . . Rewire . | . . . Trap . | . . . Miscellaneous . | . . . Route ------- -11/Scrapyard -10/Materials (discovered 2 exits: [*Min] / [*Sub]) -10/Subcaves History --------- Turn | Location | Event 22 | -11/Scrapyard | Discovered new exit (range 14) 289 | -11/Scrapyard | Entered Materials 303 | -10/Materials | Build established: Mutant 676 | -10/Materials | Core integrity fell below 50% 775 | -10/Materials | Discovered new exit (range 7) 1407 | -10/Materials | Build established: Scavenger-Mutant 1465 | -10/Materials | Discovered new exit (range 3) 1788 | -10/Materials | Entered Subcaves 1947 | -10/Subcaves | Learned location of Zion (-6) 2040 | -10/Subcaves | Shifting Twisted Machinery released Sub. Machine Gun 2050 | -10/Subcaves | Shifting Twisted Machinery released Flamer 2190 | -10/Subcaves | Core integrity fell below 20% 2220 | -10/Subcaves | Destroyed by SI-UD1(R) with Subdweller Laser Last Messages --------------- 02016_ Critical hit (Impale). 02018_ Triggered Shrapnel Trap. 02018_ An expanding cloud of shrapnel blasts out in all directions. Sub. Machine Gun falls loose from the Twisted Machinery. Flamer falls loose from the Twisted Machinery. 02108_ Subatomizers dissect the Sub. Laser. 02172_ IT-UH0(R) knocked back. 02174_ Wheel destroyed. 02175_ IT-UH0(R) Sub. Monowheel blasted off. 02178_ IT-UH0(R) destroyed. 02184_ Acquired Sub. Monowheel. 02185_ Acquired 44 matter. 02208_ SI-UD1(R) knocked back. 02209_ Lgt. Ion Engine destroyed. 02211_ SI-UD1(R) knocked back. 02217_ Subatomizers dissect the Sub. Optics. 02219_ SI-UD1(R) affixes Scrap Shield Fragment to Scrap Shield. Map ----- +----------------------------------------------------+ | ?????????????????????????????????????????????????? | | ?????????????????????????????????????????????????? | | ?????????????????????????????????????????????????? | | ?########????????????????????????????????????????? | | ?# #????????????????????????????????????????? | | ### ##????????? ?????????????????????????????? | | ### ##????????? ?????????????????????????????? | | ## ##???????# ?????????????????????????????? | | #??????# ?????????????????????????????? | | #?????? ""????????????????????????????? | | ##??????" """#??????????????????????????? | | ## ###???????" """##?????????????????????????? | | ## #?????????" #?????????????????????????? | | ?## #??????#### #?????????????????????????? | | ??# #???#### ##" #?????????????????????????? | | ?## ##### " " #??????????????????????????? | | ## ### " ""#???????????????????????????? | | # ##?# """##???????????????????????????? | | # #??# "##???###?????????????????????? | | ## ##?# ####### "##?## ##????????????????????? | | ## ### ##??#### ###"" ##???????????????????? | | # ## ##??## ## " "###?????????????????? | | #???# ""#?????????????????? | | ## #???# ## #??????????????????? | | # #### #???######### ###??????????????????? | | # ##?## ##?####?????## @###??????? ""????????? | | ###### ## ###????# RR# ## #????????? | | ### #????#%& % "????????? | | # #???# !!* % ???????? | | # #???##% ### # ???????? | | ## ## ###### ##????####??#########????????????? | | ###?## ##??????#????????????????????????????????? | | #???## #????????????????????????????????????????? | | #### ##???????????????????????????????????????? | | ### ##??????????????????????????????????????? | | ### #??????????????????????????????????????? | | ## ##??????????????????????????????????????? | | ## ##???????????????????????????????????????? | | #" #####?????????????????????????????????????? | | &]& ## ##????????????????????????????????????? | | ## = #????????????????????????????????????? | | # & #????????????????????????????????????? | | # ### #????????????????????????????????????? | | #### #????????????????????????????????????? | | ## #####????????????????????????????????????? | | ?# #?????###???????????????????????????????? | | ?# ##???## ##??#####???????????????????????? | | ?# ## ##??# #??#"""#???????????????????????? | | ?###### #### ####""#????????????????????????? | | ??????# ## ## |"#????????????????????????? | +----------------------------------------------------+ Best States ------------- Heat Dissipation 25 Energy Generation 14 Energy Capacity 160 Matter Stores 300 Matter Capacity 300 Sight Range 16 Terrain Scan Density 10 Evasion (%) 44 Item Schematics ----------------- None Robot Schematics ------------------ None Fabricated ------------ Nothing Alien Tech Used ----------------- None Achievements -------------- None Challenges ------------ None Game ------ Seed GodThermicInverter Manual? 0 Play Time 00:23:53 Cumulative 54.4 hours Start 2024.04.25 @ 22:41:37 End 2024.04.25 @ 23:02:37 Sessions 1 Manual Loads 0 Difficulty Rogue Special Mode None Game No. 77 Rogue 62 Adventurer 0 Explorer 15 Win Type - Total 0 Types 0/0/0/0/0/0/0/0/0 Lore% 32 Gallery% 39 Achievement% 29 Wizard Run 0 Options --------- Layout 1 ASCII 0 Keyboard 0 Movement Mouse Keybinds 0 Fullscreen 1 Font 24/Smallcaps Map View 50x35 Zoom Use 0% Tactical HUD 1 Map Filters NONE Filters NONE Steam 1 RUN: c7f2821f-baf1-4c57-813d-edb3165efb40